{"text_format":"3","workbook":"xlsx","n_sheets":2,"sheets":["list","data"],"not_rendered":{"defined_names":8},"read":"whole","date_system":"1900"}

{"sheet":"list","index":0,"n_rows":15,"n_cols":22,"rows_kept":15}
["№","Название ОУ","Фамилия","Имя","Имя","Отчество","Отчество","Пол","Дата рождения","Участник с ОВЗ","Класс","Класс участия","Первичный балл","Добавлено по итогам апелляций","Итоговый балл","Макс. Балл","Статус","Призер регионального / республиканского этапа прошлого года","Учитель","Место работы учителя","Профиль/Направление","Виды практик"]
[1,"МБОУ \"СОШ №1\"","Михайловская","Каролина",{"$f":"LEFT(D2)","v":"К"},"Леонидовна",{"$f":"LEFT(F2)","v":"Л"},"ж","19.05.2012","нет",7,7,75,null,{"$f":"M2+N2","v":75},100,"победитель",null,"Бабурина Валентина Владимировна","МБОУ \"СОШ №1\"","2 - Культура дома, дизайн и технологии","2.2 Механическая обработка швейного изделия или узла + Моделирование"]
[2,"МБОУ \"СОШ №2\" г. Мензелинска РТ","Стрекалова","Ева",{"$f":"LEFT(D3)","v":"Е"},"Евгеньевна",{"$f":"LEFT(F3)","v":"Е"},"ж","07.10.2013","нет",6,7,91,null,{"$f":"M3+N3","v":91},100,"победитель",null,"Петрова Светлана Анатольевна","МБОУ \"СОШ №2\" г. Мензелинска РТ","2 - Культура дома, дизайн и технологии","2.2 Механическая обработка швейного изделия или узла + Моделирование"]
[3,"МБОУ \"СОШ №2\" г. Мензелинска РТ","Гильманова","Милада","М","Ринатовна","Р","ж","24.08.2012","нет",7,7,78,null,{"$f":"M4+N4","v":78},100,"победитель",null,"Петрова Светлана Анатольевна","МБОУ \"СОШ №2\" г. Мензелинска РТ","2 - Культура дома, дизайн и технологии","2.2 Механическая обработка швейного изделия или узла + Моделирование"]
[4,"МБОУ \"СОШ №3\"","Ханипова","Екатерина","Е","Альбертовна","А","ж","20.01.2013","нет",6,7,90,null,90,100,"победитель",null,"Аманова Наталия Валентиновна","МБОУ \"СОШ №3\"","2 - Культура дома, дизайн и технологии","2.2 Механическая обработка швейного изделия или узла + Моделирование"]
[5,"МБОУ \"СОШ №3\"","Ботова","Серафима","С","Андреевна","А","ж","16.07.2013","нет",6,7,80,null,80,100,"победитель",null,"Аманова Наталия Валентиновна","МБОУ \"СОШ №3\"","2 - Культура дома, дизайн и технологии","2.2 Механическая обработка швейного изделия или узла + Моделирование"]
[6,"МБОУ \"СОШ №3\"","Назарова","София","С","Сергеевна","С","ж","25.09.2013","нет",6,7,67,null,67,100,"призер",null,"Аманова Наталия Валентиновна","МБОУ \"СОШ №3\"","2 - Культура дома, дизайн и технологии","2.2 Механическая обработка швейного изделия или узла + Моделирование"]
[7,"МБОУ \"СОШ №1\"","Кукаркина","Анастасия","А","Рустямовна","Р","ж","26.01.2011","нет",8,8,75,null,75,100,"победитель",null,"Бабурина Валентина Владимировна","МБОУ \"СОШ №1\"","2 - Культура дома, дизайн и технологии","2.2 Механическая обработка швейного изделия или узла + Моделирование"]
[8,"МБОУ \"Верхнетакерменская ООШ им. Г.Сабитова\"","Гимадиева","Чулпан","Ч","Айратовна","А","ж","22.08.2011","нет",8,8,64,null,64,100,"призер",null,"Шакирова Фаниса Ханафиевна","МБОУ \"Верхнетакерменская ООШ им. Г.Сабитова\"","2 - Культура дома, дизайн и технологии","2.2 Механическая обработка швейного изделия или узла + Моделирование"]
[9,"МБОУ \"СОШ №2\" г. Мензелинска РТ","Зиязиева","Камиля","К","Фанисовна","Ф","ж","2011-10-19","нет",8,8,91,null,91,100,"победитель",null,"Петрова Светлана Анатольевна","МБОУ \"СОШ №2\" г. Мензелинска РТ","2 - Культура дома, дизайн и технологии","2.2 Механическая обработка швейного изделия или узла + Моделирование"]
[10,"МБОУ \"СОШ №2\" г. Мензелинска РТ","Гильманова","Рената","Р","Ринатовна","Р","ж","22.04.2010","нет",9,9,48,null,48,100,"участник",null,"Петрова Светлана Анатольевна","МБОУ \"СОШ №2\" г. Мензелинска РТ","2 - Культура дома, дизайн и технологии","2.2 Механическая обработка швейного изделия или узла + Моделирование"]
[11,"МБОУ \"Урусовская ООШ имени Р.Закирова\"","Ахметова","Айгуль","А","Расулевна","Р","ж","16.03.2010","нет",9,9,39,null,39,100,"участник",null,"Шайхаттаров Мирзаян Мансурович","МБОУ \"Урусовская ООШ имени Р.Закирова\"","2 - Культура дома, дизайн и технологии","2.2 Механическая обработка швейного изделия или узла + Моделирование"]
[12,"МБОУ \"СОШ №2\" г. Мензелинска РТ","Зиязиева","Наргиза","Н","Фанисовна","Ф","ж","06.04.2009","нет",10,10,91,null,91,100,"победитель",null,"Петрова Светлана Анатольевна","МБОУ \"СОШ №2\" г. Мензелинска РТ","2 - Культура дома, дизайн и технологии","2.2 Механическая обработка швейного изделия или узла + Моделирование"]
[13,"МБОУ \"СОШ №3\"","Гатина","Алсу","А","Ринатовна","Р","ж","18.09.2009","нет",10,10,92,null,92,100,"победитель",null,"Аманова Наталия Валентиновна","МБОУ \"СОШ №3\"","2 - Культура дома, дизайн и технологии","2.2 Механическая обработка швейного изделия или узла + Моделирование"]
[14,"МБОУ \"СОШ №2\" г. Мензелинска РТ","Рахматуллина","Азалия","А","Илдаровна","И","ж","27.01.2008","нет",11,11,75,null,75,100,"победитель",null,"Петрова Светлана Анатольевна","МБОУ \"СОШ №2\" г. Мензелинска РТ","2 - Культура дома, дизайн и технологии","2.2 Механическая обработка швейного изделия или узла + Моделирование"]

{"sheet":"data","index":1,"n_rows":25,"n_cols":10,"rows_kept":25}
[{"$nulls":6},"1 - Техника, технология и техническое творчество","2 - Культура дома, дизайн и технологии","3 - Робототехника","4 - Информационная безопасность"]
["1 - Техника, технологии и техническое творчество","1.1  Практика по ручной деревообработке",{"$nulls":4},"1.1 Практика по ручной деревообработке","2.1 Ручная обработка швейного изделия или узла","3.1 Робототехника","4.1 Не предусмотрена"]
["2 - Культура дома, дизайн и технологии","1.2 Практика по механической деревообработке",{"$nulls":4},"1.2 Практика по механической деревообработке","2.2 Механическая обработка швейного изделия или узла + Моделирование"]
["3 - Робототехника","1.3 Практика по ручной металлообработке",{"$nulls":4},"1.3 Практика по ручной металлообработке","2.3 Обработка швейного изделия или узла на швейно-вышивальном оборудовании + Моделирование"]
["4 - Информационная безопасность","1.4 Практика по механической металлообработке",{"$nulls":4},"1.4 Практика по механической металлообработке","2.4 3D-моделирование и печать"]
[null,"1.5 Электрорадиотехника",{"$nulls":4},"1.5 Электрорадиотехника","2.5 Практика по работе на лазерно-гравировальном станке"]
[null,"1.6 3D-моделирование и печать",{"$nulls":4},"1.6 3D-моделирование и печать","2.6 Промышленный дизайн"]
[null,"1.7 Практика по работе на лазерно-гравировальном станке",{"$nulls":4},"1.7 Практика по работе на лазерно-гравировальном станке"]
[null,"1.8 Промышленный дизайн",{"$nulls":4},"1.8 Промышленный дизайн"]
[null,"2.1 Ручная обработка швейного изделия или узла"]
[null,"2.2 Механическая обработка швейного изделия или узла + Моделирование"]
[null,"2.3 Обработка швейного изделия или узла на швейно-вышивальном оборудовании + Моделирование"]
[null,"2.4 3D-моделирование и печать"]
[null,"2.5 Практика по работе на лазерно-гравировальном станке"]
[null,"2.6 Промышленный дизайн"]
[null,"3.1 Робототехника"]
[null,"4.1 Не предусмотрена"]
[]
[]
[]
[]
[]
["участник"]
["призер",null,"да","да",null,"м"]
["победитель",null,null,"нет",null,"ж"]